bitfinex/quotes_BTCUSD_20250620
["timestamp","ask_amount","ask_price","bid_price","bid_amount"]
[1750453146599,0.83843522,103800.0,103790.0,0.29780636]
[1750453147428,0.84806885,103800.0,103790.0,0.29780636]
[1750453147638,0.83843522,103800.0,103790.0,0.29780636]
[1750453147856,0.83843522,103800.0,103790.0,0.45604636]
[1750453148690,0.79990229,103800.0,103790.0,0.45604636]
[1750453150715,0.80953536,103800.0,103790.0,0.45604636]
[1750453150941,0.79990229,103800.0,103790.0,0.45604636]
[1750453151958,0.80953536,103800.0,103790.0,0.45604636]
[1750453152165,0.79990229,103800.0,103790.0,0.45604636]
[1750453152396,0.80953536,103800.0,103790.0,0.45604636]
[1750453152661,0.79990229,103800.0,103790.0,0.45604636]
[1750453154191,0.80953536,103800.0,103790.0,0.45604636]
[1750453156224,0.79990229,103800.0,103790.0,0.45604636]
[1750453157416,4.62197863,103800.0,103790.0,0.25803815]
[1750453157633,4.62197844,103800.0,103790.0,0.28694191]
[1750453157848,4.63161207,103800.0,103790.0,0.286942]
[1750453158257,4.63161207,103800.0,103790.0,0.29657637]
[1750453158463,4.64124588,103800.0,103790.0,0.286942]
[1750453158676,4.81465815,103800.0,103790.0,0.27730754]
[1750453158886,4.81465815,103800.0,103790.0,0.2869421]
[1750453159323,4.90029437,103800.0,103790.0,0.0653414]
[1750453159741,4.80502452,103800.0,103790.0,0.0653414]
[1750453159953,4.9148443,103800.0,103790.0,0.0653414]
[1750453160175,4.79539071,103800.0,103790.0,0.25803819]
[1750453160382,4.79539071,103800.0,103790.0,0.26890284]
[1750453161061,3.87558613,103800.0,103790.0,0.26890302]
[1750453161287,4.45643439,103800.0,103790.0,0.26790302]
[1750453161505,4.45643439,103800.0,103790.0,0.0655714]
[1750453161705,4.54307033,103800.0,103790.0,0.0643414]
[1750453161922,4.44780048,103800.0,103790.0,0.0643414]
[1750453164948,4.4478596,103800.0,103790.0,0.0643414]
[1750453166743,4.7878596,103800.0,103790.0,0.25703819]
[1750453167211,4.7878596,103800.0,103790.0,0.0643414]
[1750453168349,4.83991475,103800.0,103790.0,0.0643414]
[1750453169309,5.13603131,103800.0,103790.0,0.0001414]
[1750453171989,3.86600615,103780.0,103770.0,0.0636]
[1750453172202,5.09601331,103780.0,103770.0,0.04922153]
[1750453172416,4.63605962,103780.0,103770.0,0.24195546]
[1750453172637,4.63605962,103780.0,103770.0,0.05045153]
[1750453173062,4.63605962,103780.0,103770.0,0.04922153]
[1750453173283,4.73232947,103780.0,103770.0,0.04922153]
[1750453173494,4.63705962,103780.0,103770.0,0.04922153]
[1750453173923,4.66555903,103780.0,103770.0,0.04922153]
[1750453174772,4.66655903,103780.0,103770.0,0.04922153]
[1750453180061,4.32655903,103780.0,103770.0,0.04922153]
[1750453180274,3.57577644,103780.0,103770.0,0.26245856]
[1750453180490,3.7452754,103780.0,103770.0,0.28173092]
[1750453180698,3.38304429,103780.0,103770.0,0.28173092]
[1750453180918,4.04511798,103780.0,103770.0,0.29136696]
[1750453181147,3.38304429,103780.0,103770.0,0.29136696]
[1750453181363,0.50972323,103780.0,103770.0,0.29136696]
[1750453181574,0.51935844,103780.0,103770.0,0.29136696]
[1750453182025,0.50008812,103780.0,103770.0,0.29136696]
[1750453182233,0.84008812,103780.0,103770.0,0.29136696]
[1750453182448,0.84872333,103780.0,103770.0,0.29136696]
[1750453182777,0.83908812,103780.0,103770.0,0.29236696]
[1750453182986,0.80958862,103780.0,103770.0,0.29236696]
[1750453183200,0.46958862,103780.0,103770.0,0.29236696]
[1750453183418,0.48885903,103780.0,103770.0,0.29336696]
[1750453183836,0.48885903,103780.0,103770.0,0.27409479]
[1750453183837,1.04084562,103780.0,103770.0,0.27409479]
[1750453184073,0.89642206,103780.0,103770.0,0.27409479]
[1750453184273,0.83849516,103780.0,103770.0,0.28373083]
[1750453184485,0.8192241,103780.0,103770.0,0.28373083]
[1750453184908,0.82885958,103780.0,103770.0,0.28373083]
[1750453185350,0.82885949,103780.0,103770.0,0.28373083]
[1750453185800,0.8192241,103780.0,103770.0,0.28373083]
[1750453186045,0.8095888,103780.0,103770.0,0.28373083]
[1750453186276,0.81922401,103780.0,103770.0,0.28373083]
[1750453186502,0.8095888,103780.0,103770.0,0.28373083]
[1750453186940,0.81922419,103780.0,103770.0,0.28373083]
[1750453187160,0.8192241,103780.0,103770.0,0.28373083]
[1750453187597,0.8095888,103780.0,103770.0,0.28373083]
[1750453187818,0.8192241,103780.0,103770.0,0.28373083]
[1750453188344,0.34,103780.0,103770.0,0.28373083]
[1750453188562,0.79995369,103780.0,103770.0,0.28373083]
[1750453189644,0.80958862,103780.0,103770.0,0.28373083]
[1750453190298,0.79995369,103780.0,103770.0,0.28373083]
[1750453190509,0.79995369,103780.0,103770.0,0.37900976]
[1750453192360,0.34,103780.0,103770.0,0.37900976]
[1750453192576,0.79995369,103780.0,103770.0,0.37900976]
[1750453194378,0.34,103780.0,103770.0,0.37900976]
[1750453194630,0.79995369,103780.0,103770.0,0.37900976]
[1750453196422,0.34,103780.0,103770.0,0.37900976]
[1750453196623,0.79995369,103780.0,103770.0,0.37900976]
[1750453198887,0.45995369,103780.0,103770.0,0.37900976]
[1750453199090,0.79995369,103790.0,103780.0,0.28535152]
[1750453199338,0.45995369,103790.0,103780.0,0.44455152]
[1750453199576,0.79995369,103790.0,103780.0,0.44455152]
[1750453200372,0.80095369,103790.0,103780.0,0.44455152]
[1750453200515,0.80095369,103790.0,103780.0,0.53983045]
[1750453201489,0.341,103790.0,103780.0,0.53983045]
[1750453202130,0.342,103790.0,103780.0,0.53983045]
[1750453202389,0.80195369,103790.0,103780.0,0.53983045]
[1750453205499,0.342,103790.0,103780.0,0.53983045]
[1750453205746,0.80195369,103790.0,103780.0,0.53983045]
[1750453206507,0.001,103790.0,103780.0,0.53983045]
[1750453206734,0.50195369,103820.0,103810.0,0.22155749]
[1750453206972,4.21760505,103820.0,103810.0,0.28538749]
[1750453207192,3.87760496,103820.0,103810.0,0.28538749]
[1750453207394,3.86797356,103820.0,103810.0,0.28538749]
[1750453207823,3.82621356,103820.0,103810.0,0.28538749]
[1750453208036,3.83584487,103820.0,103810.0,0.28552813]
[1750453208250,4.17584487,103820.0,103810.0,0.28552813]
[1750453208472,4.15658234,103820.0,103810.0,0.28552813]
[1750453208713,4.143099,103820.0,103810.0,0.28552813]
[1750453208959,4.13346769,103820.0,103810.0,0.28552813]
[1750453209178,4.15856324,103820.0,103810.0,0.28552813]
[1750453209656,4.145099,103820.0,103810.0,0.28552813]
[1750453210184,3.675514,103820.0,103810.0,0.28552813]
[1750453210398,4.17380752,103820.0,103810.0,0.28552813]
[1750453211518,4.18343901,103820.0,103810.0,0.28552813]
[1750453211747,4.18343892,103820.0,103810.0,0.28552813]
[1750453212185,4.17380752,103820.0,103810.0,0.28552813]
[1750453212403,4.17280752,103820.0,103810.0,0.28552813]
[1750453212904,4.17180752,103820.0,103810.0,0.28652813]
[1750453213122,4.17180752,103820.0,103810.0,0.28752813]
[1750453214257,4.18143901,103820.0,103810.0,0.28752813]
[1750453214479,4.19107069,103820.0,103810.0,0.28752813]
[1750453215131,4.18143901,103820.0,103810.0,0.28752813]
[1750453215355,4.19107069,103820.0,103810.0,0.28752813]
[1750453216736,4.18143901,103820.0,103810.0,0.28752813]
[1750453216957,4.19107069,103820.0,103810.0,0.28752813]
[1750453217421,4.19107069,103820.0,103810.0,0.2778958]
[1750453217669,5.21282417,103820.0,103810.0,0.00214064]
[1750453218343,5.21282417,103820.0,103810.0,0.00114064]
[1750453218809,5.21482417,103820.0,103810.0,0.00114064]
[1750453219266,4.75487048,103820.0,103810.0,0.00014064]
[1750453219497,4.75787048,103820.0,103810.0,0.00014064]
[1750453219992,5.21782417,103820.0,103810.0,0.00014064]
[1750453220674,4.75787048,103820.0,103810.0,0.00014064]
[1750453224353,5.21782417,103820.0,103810.0,0.00014064]
[1750453224788,5.22682789,103820.0,103810.0,0.00014064]
[1750453226156,0.55194538,103800.0,103790.0,0.0642]
[1750453226367,5.07410654,103800.0,103790.0,0.00014069]
[1750453226585,5.08860654,103800.0,103790.0,0.00014069]
[1750453227463,5.08860654,103800.0,103790.0,0.00114069]
[1750453228998,5.09761707,103800.0,103790.0,0.00114069]
[1750453229263,4.46516761,103780.0,103770.0,0.25733135]
[1750453229478,4.20613392,103780.0,103770.0,0.25747287]
[1750453229691,4.30140377,103780.0,103770.0,0.25747545]
[1750453230974,4.30240377,103780.0,103770.0,0.25747545]
[1750453231195,4.30340377,103780.0,103770.0,0.03314152]
[1750453231406,4.30340377,103780.0,103770.0,0.22587545]
[1750453231621,4.30340377,103780.0,103770.0,0.25697545]
[1750453232492,4.28413289,103780.0,103770.0,0.25697545]
[1750453232712,4.30340377,103780.0,103770.0,0.25697545]
[1750453234980,3.55546432,103780.0,103770.0,0.27624855]
[1750453235211,4.03448907,103780.0,103770.0,0.2955211]
[1750453235449,4.03448907,103780.0,103770.0,0.28710487]
[1750453235724,4.03448907,103780.0,103770.0,0.27746855]
[1750453235953,4.22720442,103780.0,103770.0,0.27746855]
[1750453236221,4.14906983,103780.0,103770.0,0.26783214]
[1750453236439,4.0538004,103780.0,103770.0,0.27746874]
[1750453236671,4.0538004,103780.0,103770.0,0.28710525]
[1750453236904,4.50411888,103780.0,103770.0,0.00014152]
[1750453238031,4.59939781,103780.0,103770.0,0.19287545]
[1750453238275,4.13944412,103780.0,103770.0,0.22547545]
[1750453238525,4.13944412,103780.0,103770.0,0.25827545]
[1750453238755,4.12980864,103780.0,103770.0,0.25827545]
[1750453239961,4.12980864,103780.0,103770.0,0.06554152]
[1750453240279,4.22507849,103780.0,103770.0,0.06554152]
[1750453241890,4.12980864,103780.0,103770.0,0.25827545]
[1750453243803,4.46980864,103780.0,103770.0,0.06554152]
[1750453245220,4.92976233,103780.0,103770.0,0.06554152]
[1750453246067,4.94430318,103780.0,103770.0,0.06554152]
[1750453246300,4.95880318,103780.0,103770.0,0.00014152]
[1750453246522,5.05407303,103780.0,103770.0,0.00014152]
[1750453248635,5.54227303,103780.0,103770.0,0.00014152]
[1750453248835,4.64632367,103770.0,103760.0,0.03056001]
[1750453249055,4.9007626,103770.0,103760.0,0.00020155]
[1750453249717,4.9007626,103770.0,103760.0,0.06230155]
[1750453250150,4.99603245,103770.0,103760.0,0.06530155]
[1750453250786,5.02498745,103770.0,103760.0,0.06530155]
[1750453251476,4.10508007,103770.0,103760.0,0.06530155]
[1750453251700,5.02498745,103770.0,103760.0,0.06530155]
[1750453253397,5.02498745,103770.0,103760.0,0.00320155]
[1750453254056,5.02498745,103770.0,103750.0,0.063]
[1750453254057,4.18638947,103760.0,103750.0,0.063]
[1750453254265,4.57813825,103760.0,103750.0,0.031047]
[1750453255373,4.57813825,103760.0,103750.0,0.000147]
[1750453255586,4.56850082,103760.0,103750.0,0.000147]
[1750453255804,4.57813825,103760.0,103750.0,0.000147]
[1750453256030,4.11818456,103760.0,103750.0,0.032447]
[1750453256249,4.4828684,103760.0,103750.0,0.062547]
[1750453256464,4.51334514,103760.0,103750.0,0.062547]
[1750453256883,4.51434514,103760.0,103750.0,0.062547]
[1750453258979,4.51434514,103760.0,103750.0,0.05784252]
[1750453259458,3.71191444,103750.0,103740.0,0.03282]
[1750453259702,3.71191444,103750.0,103740.0,0.03286694]
[1750453259703,4.33166813,103750.0,103740.0,0.03286694]
[1750453259942,3.87171444,103750.0,103740.0,0.03286694]
[1750453260169,4.33166813,103750.0,103740.0,0.03286694]
[1750453260844,4.88689167,103750.0,103740.0,0.03286694]
[1750453261307,5.02566945,103750.0,103740.0,0.03164694]
[1750453261540,4.10576207,103750.0,103740.0,0.03164694]
[1750453261759,5.02566945,103750.0,103740.0,0.03164694]
[1750453261982,4.10576207,103750.0,103740.0,0.03164694]
[1750453262198,4.56571576,103750.0,103740.0,0.03164694]
[1750453262437,5.03943752,103750.0,103740.0,0.06234694]
[1750453262674,5.03943752,103750.0,103740.0,0.06334694]
[1750453268214,4.94416767,103750.0,103740.0,0.06334694]
[1750453270210,4.78436767,103750.0,103740.0,0.06334694]
[1750453270480,4.98944767,103750.0,103740.0,0.06334694]
[1750453271387,4.78436767,103750.0,103740.0,0.06334694]
[1750453271618,3.37195347,103730.0,103720.0,0.0001]
[1750453271837,4.33370716,103730.0,103720.0,0.0001]
[1750453272058,4.33370716,103730.0,103720.0,0.00134]
[1750453272284,4.50021424,103730.0,103720.0,0.00134]
[1750453273162,4.50121424,103730.0,103720.0,0.00134]
[1750453273388,4.59648409,103730.0,103720.0,0.00134]
[1750453274093,4.59748409,103730.0,103720.0,0.00134]
[1750453274748,4.59748409,103730.0,103720.0,0.06494]
[1750453278091,4.62644809,103730.0,103720.0,0.06494]
[1750453280784,4.62644809,103730.0,103720.0,0.0637]
[1750453281459,4.62644809,103730.0,103720.0,0.06494]
[1750453286854,4.1664944,103730.0,103720.0,0.06494]
[1750453287062,4.62644809,103730.0,103720.0,0.06494]
[1750453287954,4.46464809,103730.0,103720.0,0.06494]
[1750453288178,4.66908809,103730.0,103720.0,0.06494]
[1750453289778,4.66908809,103730.0,103720.0,0.26740818]
[1750453289995,4.66908809,103730.0,103720.0,0.06494]
[1750453291377,4.66908809,103730.0,103720.0,0.25776684]
[1750453292577,3.81188615,103730.0,103720.0,0.25776684]
[1750453292821,4.59285849,103730.0,103720.0,0.28669021]
[1750453293039,4.58321855,103730.0,103720.0,0.27704924]
[1750453293289,4.57357833,103730.0,103720.0,0.27704942]
[1750453294890,4.57357833,103730.0,103720.0,0.26740818]
[1750453295110,4.66884818,103730.0,103720.0,0.27704933]
[1750453295333,4.66884818,103730.0,103720.0,0.28669039]
[1750453295553,4.66884818,103730.0,103720.0,0.27704933]
[1750453296011,4.66884818,103730.0,103720.0,0.26740818]
[1750453296228,4.66884818,103730.0,103720.0,0.28669057]
[1750453296451,4.66884818,103730.0,103720.0,0.27704942]
[1750453297349,4.66884818,103730.0,103720.0,0.28669057]
[1750453298978,4.57357833,103730.0,103720.0,0.28669057]
[1750453299406,4.57357833,103730.0,103720.0,0.27704942]
[1750453300253,4.56393802,103730.0,103720.0,0.25776684]
[1750453300886,5.02519433,103730.0,103720.0,0.25776684]
[1750453301346,5.02519433,103730.0,103720.0,0.06494]
[1750453301563,5.12046418,103730.0,103720.0,0.25776684]
[1750453302245,5.12046418,103730.0,103720.0,0.06494]
[1750453303768,5.12046418,103730.0,103720.0,0.25776684]
[1750453305585,4.80507633,103730.0,103720.0,0.06494]
[1750453309551,5.37550111,103730.0,103720.0,0.0001]
[1750453311419,4.88593211,103730.0,103720.0,0.0001]
[1750453314726,4.88593211,103730.0,103720.0,0.25592684]
[1750453315398,4.88593211,103730.0,103720.0,0.0313]
[1750453315604,4.98120196,103730.0,103720.0,0.0313]
[1750453315814,5.00430256,103730.0,103720.0,0.0313]
[1750453318810,4.90903271,103730.0,103720.0,0.0313]
[1750453321655,4.90903271,103730.0,103720.0,0.22412684]
[1750453321883,4.90903271,103730.0,103720.0,0.25452684]
[1750453322101,4.90903271,103730.0,103720.0,0.25570684]
[1750453322314,4.88593211,103730.0,103720.0,0.25570684]
[1750453322963,4.90902979,103730.0,103720.0,0.25570684]
[1750453323395,4.90902979,103730.0,103720.0,0.06288]
[1750453323818,4.54593211,103730.0,103720.0,0.06288]
[1750453325317,4.38712953,103730.0,103720.0,0.06288]
[1750453325846,4.72712953,103730.0,103720.0,0.06288]
[1750453327659,4.72712953,103730.0,103720.0,0.25570684]
[1750453328478,4.72712953,103730.0,103720.0,0.06288]
[1750453329787,4.52461678,103730.0,103720.0,0.06288]
[1750453330023,4.71742503,103730.0,103720.0,0.06288]
[1750453330260,4.85034516,103730.0,103720.0,0.06288]
[1750453333662,4.94561501,103730.0,103720.0,0.06288]
[1750453335769,4.94561501,103730.0,103720.0,0.0617]
[1750453336203,5.40622001,103730.0,103720.0,0.0001]
[1750453336424,5.4613135,103730.0,103720.0,0.0001]
[1750453336645,5.4293135,103730.0,103720.0,0.0001]
[1750453341067,5.4923135,103730.0,103720.0,0.0001]
[1750453341699,5.4293135,103730.0,103720.0,0.0001]
[1750453345114,5.45635271,103730.0,103720.0,0.0001]
[1750453346431,5.45635279,103730.0,103720.0,0.0001]
[1750453347941,5.45635209,103730.0,103720.0,0.0001]
[1750453348604,3.49675469,103720.0,103700.0,0.0629]
[1750453348828,4.72498429,103710.0,103700.0,0.01699545]
[1750453349047,4.87036379,103710.0,103700.0,0.01699545]
[1750453349703,4.85234838,103710.0,103700.0,0.01699545]
[1750453350116,4.85239539,103710.0,103700.0,0.01699545]
[1750453351305,4.85439539,103710.0,103700.0,0.01799545]
[1750453351524,3.4187981,103710.0,103700.0,0.24943115]
[1750453351732,3.8794031,103710.0,103700.0,0.24943115]
[1750453351947,3.89868624,103710.0,103700.0,0.28063115]
[1750453352162,3.89868615,103710.0,103700.0,0.28063115]
[1750453352383,3.56632795,103710.0,103700.0,0.28063115]
[1750453352597,3.57897003,103710.0,103700.0,0.28063115]
[1750453352808,3.56932795,103710.0,103700.0,0.28163115]
[1750453353010,3.56632795,103710.0,103700.0,0.28163115]
[1750453354295,3.90632795,103710.0,103700.0,0.28263115]
[1750453354929,3.91596994,103710.0,103700.0,0.28263115]
[1750453355132,3.44572295,103710.0,103700.0,0.28263115]
[1750453355346,3.90632795,103710.0,103700.0,0.28263115]
[1750453355548,3.91596994,103710.0,103700.0,0.28263115]
[1750453355978,3.44572295,103710.0,103700.0,0.28263115]
[1750453356207,3.90632795,103710.0,103700.0,0.28263115]
[1750453356648,3.91596994,103710.0,103700.0,0.28263115]
[1750453357088,3.90632795,103710.0,103700.0,0.28263115]
[1750453357964,3.90632786,103710.0,103700.0,0.28263115]
[1750453358716,3.44572286,103710.0,103700.0,0.28263115]
[1750453358964,3.88704453,103710.0,103700.0,0.28263115]
[1750453361177,3.8774031,103710.0,103700.0,0.28263115]
[1750453361718,3.88704453,103710.0,103700.0,0.28263115]
[1750453362875,3.89668615,103710.0,103700.0,0.28263115]
[1750453363108,3.88704453,103710.0,103700.0,0.28263115]
[1750453363310,3.89668615,103710.0,103700.0,0.28263115]
[1750453364587,3.91596985,103710.0,103700.0,0.28263115]
[1750453365595,3.89668615,103710.0,103700.0,0.28263115]
[1750453365775,3.90632795,103710.0,103700.0,0.28263115]
[1750453367360,3.91596994,103710.0,103700.0,0.28263115]
[1750453367803,3.90632795,103710.0,103700.0,0.28263115]
[1750453369079,3.91596994,103710.0,103700.0,0.28263115]
[1750453369290,3.90632795,103710.0,103700.0,0.28263115]
[1750453369971,3.43608115,103710.0,103700.0,0.28263115]
[1750453370193,3.89668615,103710.0,103700.0,0.28263115]
[1750453370413,3.90632795,103710.0,103700.0,0.28263115]
[1750453370842,3.89668615,103710.0,103700.0,0.28263115]
[1750453371063,4.05580615,103710.0,103700.0,0.28263115]
[1750453371316,4.06544786,103710.0,103700.0,0.28263115]
[1750453371763,4.05580615,103710.0,103700.0,0.28263115]
[1750453373226,3.88704453,103710.0,103700.0,0.28263115]
[1750453373439,3.4167981,103710.0,103700.0,0.28263115]
[1750453373655,3.88704462,103710.0,103700.0,0.28263115]
[1750453374079,3.89668633,103710.0,103700.0,0.28263115]
[1750453374282,3.89668624,103710.0,103700.0,0.28263115]
[1750453375582,3.88704462,103710.0,103700.0,0.28263115]
[1750453376011,3.89668633,103710.0,103700.0,0.28263115]
[1750453376494,3.89668624,103710.0,103700.0,0.28263115]
[1750453376711,3.88704462,103710.0,103700.0,0.28263115]
[1750453378702,3.89668633,103710.0,103700.0,0.28263115]
[1750453379313,3.88704462,103710.0,103700.0,0.28263115]
[1750453379506,3.89668633,103710.0,103700.0,0.28263115]
[1750453380178,3.88704462,103710.0,103700.0,0.28263115]
[1750453380392,3.89668624,103710.0,103700.0,0.28263115]
[1750453383483,3.90632804,103710.0,103700.0,0.28263115]
[1750453383696,3.89668624,103710.0,103700.0,0.28263115]
[1750453383906,3.89668642,103710.0,103700.0,0.28263115]
[1750453384235,3.89668633,103710.0,103700.0,0.28263115]
[1750453384448,4.35729133,103710.0,103700.0,0.28263115]
[1750453384665,3.89668633,103710.0,103700.0,0.28263115]
[1750453386676,3.90632822,103710.0,103700.0,0.28263115]
[1750453386904,3.90632878,103710.0,103700.0,0.26334522]
[1750453387145,3.90632785,103710.0,103700.0,0.27298777]
[1750453388313,3.89668605,103710.0,103700.0,0.27298777]
[1750453388526,3.90632776,103710.0,103700.0,0.27298777]
[1750453390491,3.94828776,103710.0,103700.0,0.27298777]
[1750453390715,4.41853465,103710.0,103700.0,0.27298777]
[1750453391055,4.41853465,103710.0,103700.0,0.26334522]
[1750453391278,4.42817673,103710.0,103700.0,0.27298786]
[1750453391511,4.41853465,103710.0,103700.0,0.28263041]
[1750453391760,4.41853465,103710.0,103700.0,0.27298786]
[1750453391950,4.81343759,103710.0,103700.0,0.002]
[1750453392217,4.85458586,103710.0,103700.0,0.002]
[1750453392457,4.9734313,103710.0,103700.0,0.002]
[1750453392698,4.96440564,103710.0,103700.0,0.002]
[1750453392939,5.05965936,103710.0,103700.0,0.001]
[1750453393375,5.06265936,103710.0,103700.0,0.001]
[1750453393648,3.16153687,103700.0,103690.0,0.20261677]
[1750453393915,4.27358687,103700.0,103690.0,0.20261677]
[1750453394129,4.39924216,103700.0,103690.0,0.19298263]
[1750453394358,5.25122818,103700.0,103690.0,0.0001]
[1750453394609,5.46716226,103700.0,103690.0,0.0001]
[1750453395031,5.46816242,103700.0,103690.0,0.0001]
[1750453395485,5.46916242,103700.0,103690.0,0.0001]
[1750453395745,5.46916107,103700.0,103690.0,0.0001]
[1750453395976,5.49797729,103700.0,103690.0,0.0001]
[1750453396158,5.69972151,103700.0,103690.0,0.0001]
[1750453396377,0.20252657,103690.0,103680.0,0.0001]
[1750453396668,5.32893735,103690.0,103680.0,0.0001]
[1750453396857,5.46067058,103690.0,103680.0,0.0001]
[1750453397295,5.50172092,103690.0,103680.0,0.0001]
[1750453397513,5.50372092,103690.0,103680.0,0.0001]
[1750453397730,5.5327168,103690.0,103680.0,0.0001]
[1750453397983,5.5337168,103690.0,103680.0,0.0001]
[1750453398201,5.54825765,103690.0,103680.0,0.0001]
[1750453398425,5.52521167,103690.0,103680.0,0.0001]
[1750453398659,5.54823369,103690.0,103680.0,0.0001]
[1750453398892,5.57721469,103690.0,103680.0,0.0001]
[1750453399106,5.57721903,103690.0,103680.0,0.0001]
[1750453399552,5.55419267,103690.0,103680.0,0.0001]
[1750453400605,5.53618831,103690.0,103680.0,0.0001]
[1750453402230,4.9348481,103680.0,103670.0,0.0001]
[1750453402464,5.28443688,103680.0,103670.0,0.0001]
[1750453402690,5.28443688,103680.0,103660.0,0.0001]
[1750453402691,4.94940849,103670.0,103660.0,0.0001]
[1750453402908,4.78484242,103670.0,103660.0,0.0001]
[1750453403139,5.369625,103670.0,103660.0,0.0001]
[1750453403567,4.90902,103670.0,103660.0,0.0001]
[1750453403775,5.47694177,103670.0,103660.0,0.0001]
[1750453404005,5.4770827,103670.0,103660.0,0.0001]
[1750453404905,5.01790474,103670.0,103660.0,0.0001]
[1750453406222,5.01990474,103670.0,103660.0,0.0001]
[1750453406922,5.02190474,103670.0,103660.0,0.0001]
[1750453414028,0.0318,103660.0,103640.0,0.0611]
[1750453414252,3.50165977,103640.0,103630.0,0.2232943]
[1750453414571,4.21789722,103640.0,103630.0,0.2244843]
[1750453414805,4.32438111,103640.0,103630.0,0.2244843]
[1750453415017,4.31473261,103640.0,103630.0,0.03149]
[1750453415221,3.85341409,103640.0,103630.0,0.2244843]
[1750453415427,4.31473261,103640.0,103630.0,0.2244843]
[1750453415915,4.41000246,103640.0,103630.0,0.03149]
[1750453416485,4.41000246,103640.0,103630.0,0.03449]
[1750453416687,4.41000246,103640.0,103630.0,0.03349]
[1750453416890,4.31473261,103640.0,103630.0,0.03349]
[1750453417074,4.31473261,103640.0,103630.0,0.03449]
[1750453417298,4.31473261,103640.0,103630.0,0.06719]
[1750453417936,4.31473261,103640.0,103630.0,0.03449]
[1750453418669,4.82369198,103640.0,103630.0,0.001]
[1750453418878,4.91896183,103640.0,103630.0,0.001]
[1750453419545,4.45764331,103640.0,103630.0,0.001]
[1750453420183,4.91896183,103640.0,103630.0,0.001]
[1750453420606,4.94916183,103640.0,103630.0,0.001]
[1750453420869,0.54753515,103630.0,103610.0,0.0001]
[1750453421083,4.72642721,103620.0,103610.0,0.03399]
[1750453421266,4.82486404,103620.0,103610.0,0.03399]
[1750453422415,4.82486404,103620.0,103610.0,0.03445947]
[1750453423268,4.82486404,103620.0,103610.0,0.03545947]
[1750453425431,4.84787841,103620.0,103610.0,0.03545947]
[1750453425655,4.94314826,103620.0,103610.0,0.03545947]
[1750453425877,4.72719107,103620.0,103610.0,0.03545947]
[1750453426104,4.71382704,103620.0,103610.0,0.00275947]
[1750453426325,4.61855719,103620.0,103610.0,0.03535947]
[1750453427693,4.61855719,103620.0,103610.0,0.00156947]
[1750453428337,4.66429804,103620.0,103610.0,0.00156947]
[1750453429544,4.66429804,103620.0,103610.0,0.00056947]
[1750453429758,4.75956789,103620.0,103610.0,0.00056947]
[1750453429979,4.76156789,103620.0,103610.0,0.00056947]
[1750453430191,4.72936789,103620.0,103610.0,0.00056947]
[1750453430642,4.73036789,103620.0,103610.0,0.00056947]
[1750453431321,4.72936789,103620.0,103610.0,0.00056947]
[1750453431537,4.75238579,103620.0,103610.0,0.00056947]
[1750453431764,4.75338579,103620.0,103610.0,0.00056947]
[1750453432881,4.55146579,103620.0,103610.0,0.00056947]
[1750453433022,4.65815594,103620.0,103610.0,0.00056947]
[1750453433632,4.31815594,103620.0,103610.0,0.00056947]
[1750453435499,4.65815594,103620.0,103610.0,0.00056947]
[1750453436544,4.65815594,103620.0,103610.0,0.03326947]
[1750453437571,4.75342579,103620.0,103610.0,0.03326947]
[1750453437772,4.75342579,103620.0,103610.0,0.00056947]
[1750453438694,4.75342579,103620.0,103610.0,0.03326947]
[1750453438947,4.65815594,103620.0,103610.0,0.03326947]
[1750453439804,4.6649087,103620.0,103610.0,0.03326947]
[1750453440950,4.66490897,103620.0,103610.0,0.03326947]
[1750453441387,4.65815594,103620.0,103610.0,0.03326947]
[1750453441603,4.66491557,103620.0,103610.0,0.03326947]
[1750453442044,4.76018542,103620.0,103610.0,0.03326947]
[1750453442470,4.76018542,103620.0,103610.0,0.03450947]
[1750453442917,4.76018542,103620.0,103610.0,0.00056947]
[1750453443137,4.66491557,103620.0,103610.0,0.00056947]
[1750453443353,4.66459557,103620.0,103610.0,0.22754103]
[1750453443582,4.65494596,103620.0,103610.0,0.06700947]
[1750453443826,4.65494596,103620.0,103610.0,0.26004103]
[1750453444053,4.65494595,103620.0,103610.0,0.06700947]
[1750453444496,4.63192805,103620.0,103610.0,0.06700947]
[1750453444726,4.7271979,103620.0,103610.0,0.06700947]
[1750453444951,4.7271979,103620.0,103610.0,0.03450947]
[1750453445437,4.77918401,103620.0,103610.0,0.03450947]
[1750453445862,4.77918922,103620.0,103610.0,0.03450947]
[1750453446806,4.77918922,103620.0,103610.0,0.03326947]
[1750453447242,4.77919019,103620.0,103610.0,0.03326947]
[1750453447932,4.84409019,103620.0,103610.0,0.00056947]
[1750453448167,3.30519341,103610.0,103590.0,0.03384]
[1750453448401,4.13775948,103600.0,103590.0,0.03430886]
[1750453448642,4.58083881,103600.0,103590.0,0.00046886]
[1750453449377,4.63992174,103600.0,103590.0,0.00046886]
[1750453449631,4.67252174,103600.0,103590.0,0.00046886]
[1750453449847,4.76779159,103600.0,103590.0,0.00046886]
[1750453450292,4.76780007,103600.0,103590.0,0.00346886]
[1750453450516,4.76780007,103600.0,103590.0,0.00046886]
[1750453450737,4.76780007,103600.0,103590.0,0.00146886]
[1750453450966,4.76780007,103600.0,103590.0,0.00046886]
[1750453451448,4.76980007,103600.0,103590.0,0.00046886]
[1750453452333,4.76979526,103600.0,103590.0,0.00046886]
[1750453455018,4.74669032,103600.0,103590.0,0.00046886]
[1750453455252,4.74668711,103600.0,103590.0,0.00046886]
[1750453456044,4.76980617,103600.0,103590.0,0.00046886]
[1750453456293,4.76980561,103600.0,103590.0,0.00046886]
[1750453456759,4.76303665,103600.0,103590.0,0.00046886]
[1750453468114,4.54961814,103600.0,103590.0,0.00046886]
[1750453468324,4.75232065,103600.0,103590.0,0.00046886]
[1750453468983,5.21529448,103600.0,103590.0,0.00046886]
[1750453474417,5.12002463,103600.0,103590.0,0.00046886]
[1750453474833,5.12680868,103600.0,103590.0,0.00046886]
[1750453475676,5.12680869,103600.0,103590.0,0.00046886]
[1750453478038,5.12310752,103600.0,103590.0,0.00046886]
[1750453478318,5.09030752,103600.0,103590.0,0.00046886]
[1750453478547,5.09031135,103600.0,103590.0,0.00046886]
[1750453478769,5.1855812,103600.0,103590.0,0.00046886]
[1750453478999,5.2183812,103600.0,103590.0,0.00046886]
[1750453479931,5.2614612,103600.0,103590.0,0.00046886]
[1750453481390,5.26146104,103600.0,103590.0,0.00046886]
[1750453484262,5.25467331,103600.0,103590.0,0.00046886]
[1750453484436,5.26146129,103600.0,103590.0,0.00046886]
[1750453484649,5.16619144,103600.0,103590.0,0.00046886]
[1750453487328,3.30416792,103590.0,103580.0,0.27628385]
[1750453487546,4.50682649,103590.0,103580.0,0.27633071]
[1750453487789,4.54946649,103590.0,103580.0,0.27633071]
[1750453488212,4.32362536,103590.0,103580.0,0.27633071]
[1750453488466,4.51669418,103590.0,103580.0,0.27633071]
[1750453488677,4.52634743,103590.0,103580.0,0.27633071]